Cogmind - Beta 14 @@@ ROGUE MODE // 2024.08.30 @ 13:38:35 Player: ZK Result: Destroyed by Y-45 Defender with Heavy Assault Rifle Performance ------------- Evolutions (1) 500 Regions Visited (3) 600 Robots Destroyed (41) 205 Value Destroyed (903) 903 Prototype IDs (0) 0 Alien Tech Used (0) 0 Bonus (8) 8 TOTAL SCORE: 2216 Bonus ------- High Alert Combat Kills 8 Cogmind --------- Core Integrity 0/400 Matter 300/300 Energy 98/100 System Corruption 0% Temperature Cool (0) Movement Core (50) Location -9/Materials Parts ------- > --- POWER (1) -------- (None) > --- PROPULSION (4) --- (None) > --- UTILITY (2) ------ Sensor Array > --- WEAPON (2) ------- (None) > --- INVENTORY (5) ---- Light Ion Engine Advanced Weight Redist. System Hardened Light Armor Plating Grenade Launcher Rocket Launcher Peak State ------------ > --- POWER ------------ Improved Ion Engine > --- PROPULSION ------- Light Treads Aluminum Leg Aluminum Leg Aluminum Leg > --- UTILITY ---------- Medium Storage Unit Sensor Array > --- WEAPON ----------- Particle Gun Heavy Assault Rifle > --- INVENTORY -------- Light Ion Engine Light Treads Improved Heat Sink Hardened Light Armor Plating EM Shotgun Heavy Assault Rifle Grenade Launcher Grenade Launcher Rocket Launcher Datajack [Rating: 13] Favorites ----------- Power Light Nuclear Core Engine Light Ion Engine Power Core Light Nuclear Core Propulsion Aluminum Leg Treads Light Treads Leg Aluminum Leg Wheel Wheel Utility Medium Storage Unit Device Sensor Array Storage Medium Storage Unit Protection Light Armor Plating Weapon Assault Rifle Energy Gun Small Laser Ballistic Gun Assault Rifle Launcher Grenade Launcher Build | -11 -10 -10 -9 ------- Run | Yrd Mat Min Mat Slots Evolved 2 | . . . 2 Power . | . . . . Propulsion 2 | . . . 2 Utility . | . . . . Weapon . | . . . . Parts Attached 52 | 7 25 7 13 Power 9 | 1 5 2 1 Engine 5 | 1 1 2 1 Core 4 | . 4 . . Reactor . | . . . . Propulsion 18 | 3 8 2 5 Treads 6 | 1 2 . 3 Leg 11 | 2 6 2 1 Wheel 1 | . . . 1 Hover . | . . . . Flight . | . . . . Utility 8 | 1 5 2 . Device 3 | . 1 2 . Storage 2 | 1 1 . . Processor . | . . . . Hackware . | . . . . Protection 3 | . 3 . . Artifact . | . . . . Weapon 17 | 2 7 1 7 Energy Gun 5 | . 1 . 4 Energy Cannon . | . . . . Ballistic Gun 9 | 2 5 . 2 Ballistic Cannon . | . . . . Launcher 3 | . 1 1 1 Special Weapon . | . . . . Impact Weapon . | . . . . Slashing Weapon . | . . . . Piercing Weapon . | . . . . Special Melee Weapon . | . . . . Unidentified Prototypes . | . . . . Parts Lost 15 | . 2 2 11 Power 2 | . . 1 1 Propulsion 6 | . 1 . 5 Utility 2 | . . 1 1 Weapon 5 | . 1 . 4 Highest Loss Streak 10 | . 1 2 10 To Critical Strikes . | . . . . Average Slot Usage (%) 96 | . 96 96 94 Engine 6 | . 2 11 10 Core 6 | . 11 2 . Treads 7 | . 6 8 8 Leg 21 | . 20 19 29 Device 5 | . 1 9 11 Storage 13 | . 14 14 10 Protection 6 | . 11 2 . Energy Gun 7 | . 4 9 13 Ballistic Gun 17 | . 23 13 6 Launcher 1 | . . 4 . Peak Build Rating 13 | 6 10 10 13 Average Rating 9 | 3 8 8 11 On Entrance 5 | . 6 10 7 Naked Turns . | . . . . Heaviest Build 24 | 11 22 21 24 Greatest Support 40 | 20 40 40 30 Greatest Overweight (x) 6 | . 6 . 3 Average Overweight (x) . | . . . . Largest Inventory Capacity 10 | 8 10 10 10 Average Capacity 9 | 5 9 10 9 Most Carried 10 | 6 10 10 10 Average Carried 8 | 2 8 9 8 Final Capacity 10 | 8 10 10 5 Final Carried 10 | 6 10 10 5 Class Distribution -------------------- 80% | Mutant 19% | Scavenger-Mutant Dominant Class ---------------- Mutant | -10/Materials Mutant | -10/Mines Scavenger-Mutant | -9/Materials Resources | -11 -10 -10 -9 ----------- Run | Yrd Mat Min Mat Matter Collected 1075 | 214 294 297 270 Remotely . | . . . . Salvage Created 957 | . 294 250 413 Parts 87 | . 23 30 34 Haulers Intercepted 1 | . . . 1 Recyclers Shooed . | . . . . Parts Field Recycled . | . . . . Retrieved Matter . | . . . . Parts Self-Destructed . | . . . . Prevented . | . . . . Kills | -11 -10 -10 -9 ------- Run | Yrd Mat Min Mat Combat Hostiles Destroyed 34 | . 11 11 12 Guns 19 | . 9 4 6 AOE 15 | . 2 7 6 Classes Destroyed 7 | . 2 2 3 Worker 2 | . . 2 . Builder 3 | . . 1 2 Hauler 1 | . . . 1 Recycler 1 | . . . 1 Swarmer 16 | . 5 7 4 Grunt 14 | . 6 4 4 Sentry 4 | . . . 4 Best Kill Streak 9 | . 4 7 9 Combat Bots Only 7 | . 4 4 7 Max Kills in Single Turn 2 | . 2 2 2 Gunslinging 1 | . 1 . . Exploded 2 | . 1 2 2 Melee . | . . . . Uniques/NPCs Destroyed . | . . . . Combat | -11 -10 -10 -9 -------- Run | Yrd Mat Min Mat Hostile Shots Fired 239 | . 64 51 124 Missed 62 | . 19 16 27 Damage Taken 2605 | . 562 525 1518 Core 542 | . 60 75 407 Absorbed by Shields . | . . . . Core Remaining (%) 73 | 100 . 46 . Volleys Fired 99 | . 38 26 35 Largest 2 | . 2 2 2 Hottest 105 | . 40 60 105 Shots Fired 173 | . 72 42 59 Gun 152 | . 69 32 51 Cannon . | . . . . Launcher 21 | . 3 10 8 Special . | . . . . Kinetic 100 | . 69 16 15 Thermal 50 | . . 16 34 Explosive 21 | . 3 10 8 Electromagnetic 2 | . . . 2 Robot Hit Streak 12 | . 12 10 11 Robot Miss Streak 3 | . 2 2 3 Penetration Max . | . . . . Secondary Targets 2 | . 2 . . Max Gunslinging Chain 1 | . 1 . . Shots Hit Robots 111 | . 50 26 35 Core Hits 75 | . 22 21 32 Critical Kills . | . . . . Critical Parts Destroyed . | . . . . Critical Strikes . | . . . . Melee Attacks . | . . . . Impact . | . . . . Slashing . | . . . . Piercing . | . . . . Sneak Attacks . | . . . . Combat Hostiles . | . . . . Follow-up Attacks . | . . . . Damage Inflicted 2455 | . 561 840 1054 Guns 1356 | . 529 267 560 Cannons . | . . . . Explosions 1087 | . 32 573 482 Melee . | . . . . Ramming 12 | . . . 12 Kinetic 852 | . 529 159 164 Thermal 471 | . . 108 363 Explosive 1087 | . 32 573 482 Electromagnetic 33 | . . . 33 Impact . | . . . . Slashing . | . . . . Piercing . | . . . . Highest Corruption . | . . . . Average Corruption . | . . . . Corruption Purged . | . . . . Corruption Blocked . | . . . . Overload Shots . | . . . . Overflow Damage 69 | . 20 49 . Projectiles . | . . . . Explosions 69 | . 20 49 . Melee . | . . . . Knockbacks . | . . . . Impact . | . . . . Kinetic . | . . . . Secondary . | . . . . Self-Inflicted Damage 75 | . 30 45 . Shots 4 | . 1 3 . Rammed 2 | . . . 2 Targets Rammed 3 | . . . 3 Kicked 1 | . . . 1 Crushed . | . . . . Highest Temperature 447 | . 101 190 447 Average Temperature 112 | . 41 62 165 Received Heat Transfer 888 | . 243 240 405 Effects 4 | . . . 4 Shutdowns 1 | . . . 1 Energy Bleed 1 | . . . 1 Interference 2 | . . . 2 Siege Activations . | . . . . Robots Corrupted . | . . . . Combat Hostiles . | . . . . Parts Fried . | . . . . Impact Corruptions . | . . . . Robots Melted . | . . . . Combat Hostiles . | . . . . Parts Melted 3 | . . . 3 Heat Transferred 1116 | . . 250 866 Parts Sabotaged . | . . . . Parts Stolen . | . . . . Parts Stripped . | . . . . Power Chain Reactions . | . . . . Alert | -11 -10 -10 -9 ------- Run | Yrd Mat Min Mat Peak Influence 404 | . 240 273 404 Initial 105 | . . . 105 Average 93 | . 62 63 214 Maximum Alert Level 2 | . 1 1 2 Low Security (%) 83 | 100 90 95 50 Level 1 15 | . 9 5 44 Level 2 . | . . . 4 Level 3 . | . . . . Level 4 . | . . . . Level 5 . | . . . . High Security . | . . . . Max Security . | . . . . Squads Dispatched 1 | . 1 . . Investigation . | . . . . Extermination . | . . . . Reinforcement 1 | . 1 . . Assault . | . . . . Garrison . | . . . . Intercept . | . . . . Searches Triggered . | . . . . Construction Impeded . | . . . . Haulers Reinforced . | . . . . Active Scanning Responses . | . . . . Cargo Convoy Interrupts . | . . . . Stealth | -11 -10 -10 -9 --------- Run | Yrd Mat Min Mat Distress Signals 4 | . 1 . 3 Communications Jammed . | . . . . Distress Signals . | . . . . Times Spotted 52 | . 22 12 18 Peak Tracking Total 7 | . 4 3 7 Tactical Retreats 3 | . 1 1 1 Traps | -11 -10 -10 -9 ------- Run | Yrd Mat Min Mat Traps Triggered 5 | . 5 . . Indirectly . | . . . . Trap Hack Attempts . | . . . . Triggered . | . . . . Disarmed . | . . . . Reprogrammed . | . . . . Reused . | . . . . Traps Extracted . | . . . . Installed . | . . . . Triggered . | . . . . Machines | -11 -10 -10 -9 ---------- Run | Yrd Mat Min Mat Machines Disabled 1 | . . 1 . Max in Single Turn 1 | . . 1 . Machines Repaired . | . . . . Machines Dismantled . | . . . . Machines Sabotaged . | . . . . Overloaded Fab Kills . | . . . . Hacking | -11 -10 -10 -9 --------- Run | Yrd Mat Min Mat Machines Accessed 7 | . 5 . 2 Terminals 5 | . 4 . 1 Fabricators . | . . . . Repair Stations . | . . . . Recycling Units 1 | . 1 . . Scanalyzers 1 | . . . 1 Garrison Access . | . . . . Total Hacks 25 | . 17 . 8 Successful 10 | . 5 . 5 Failed 15 | . 12 . 3 Catastrophic 6 | . 5 . 1 Database Lockouts . | . . . . Manual 10 | . 7 . 3 Terminals 17 | . 13 . 4 Fabricators . | . . . . Repair Stations . | . . . . Recycling Units 4 | . 4 . . Scanalyzers 4 | . . . 4 Garrison Access . | . . . . Terminal Hacks 6 | . 4 . 2 Terminal Index 1 | . 1 . . Alert Level 1 | . . . 1 Unreport Threat 2 | . 1 . 1 Hauler Manifests 1 | . 1 . . Zone Layout 1 | . 1 . . Fabricator Hacks . | . . . . Repair Station Hacks . | . . . . Recycling Unit Hacks 1 | . 1 . . Report Inventory 1 | . 1 . . Scanalyzer 3 | . . . 3 Insert Component 2 | . . . 2 Analyze 1 | . . . 1 Garrison Access Hacks . | . . . . Unauthorized Hacks . | . . . . Terminals . | . . . . Fabricators . | . . . . Repair Stations . | . . . . Recycling Units . | . . . . Scanalyzers . | . . . . Garrison Access . | . . . . Data Cores Recovered . | . . . . Used . | . . . . Hacking Detections 7 | . 5 . 2 Full Trace Events . | . . . . Feedback Events . | . . . . Feedback Blocked . | . . . . Robot Schematics Acquired . | . . . . Robots Built . | . . . . Authchips . | . . . . Time . | . . . . Total Robot Build Rating . | . . . . Part Schematics Acquired 1 | . . . 1 Parts Built . | . . . . Authchips . | . . . . Time . | . . . . Total Part Build Rating . | . . . . Parts Repaired . | . . . . Time . | . . . . Parts Recycled . | . . . . Recycled Matter . | . . . . Retrieved Matter . | . . . . Retrieved Components . | . . . . Parts Scanalyzed 1 | . . . 1 Part Schematics Acquired 1 | . . . 1 Parts Damaged . | . . . . Bothacking | -11 -10 -10 -9 ------------ Run | Yrd Mat Min Mat Used RIF Installer . | . . . . Robots Hacked . | . . . . Non-combat . | . . . . Combat . | . . . . Robot Hacks Applied . | . . . . Relay Couplers Released . | . . . . Fabnet Peak Effective % . | . . . . Robots Rewired . | . . . . Allies Hacked . | . . . . Hacks Repelled . | . . . . Allies | -11 -10 -10 -9 -------- Run | Yrd Mat Min Mat Total Allies . | . . . . Largest Group . | . . . . Highest-Rated Group . | . . . . Highest-Rated Ally . | . . . . Total Orders . | . . . . Ally Attacks . | . . . . Total Damage . | . . . . Kills . | . . . . Allies Corrupted . | . . . . Allies Melted . | . . . . Intel | -11 -10 -10 -9 ------- Run | Yrd Mat Min Mat Robot Analysis Total . | . . . . Derelict Logs Recovered . | . . . . Drone Launches . | . . . . Drone Recoveries . | . . . . Exploration | -11 -10 -10 -9 ------------- Run | Yrd Mat Min Mat Turns Passed 2966 | 112 1557 660 637 Spaces Moved 1751 | 103 839 437 372 Core 87 | 46 5 . 36 Treads 337 | 13 227 95 2 Legs 1327 | 44 607 342 334 Wheels . | . . . . Hover . | . . . . Flight . | . . . . Fastest Speed 50 | 50 120 120 50 Average Speed 140 | 93 164 128 114 Slowest Speed 350 | 160 350 160 200 Overloaded Moves . | . . . . Propulsion Burnouts . | . . . . Robots Hopped . | . . . . Cave-ins Triggered . | . . . . Exploration Rate (%) 44 | 5 76 78 20 Regions Visited 3 Branch Regions 1 Pre-discovered Areas . | . . . . Known Exits Taken . | . . . . Unknown Exits Taken 3 | 1 1 1 . Scrap Searched 3 | . . 3 . Spaces Dug . | . . . . Terrain Destroyed 126 | . 18 72 36 Melee . | . . . . Projectile . | . . . . AOE 126 | . 18 72 36 Terrain Rammed . | . . . . Walls Destroyed . | . . . . Machines Disabled . | . . . . Actions | -11 -10 -10 -9 --------- Run | Yrd Mat Min Mat Total 2079 | 115 947 494 523 Wait 134 | . 31 14 89 Move 1748 | 102 838 436 372 Hop . | . . . . Pick Up 22 | 5 6 5 6 Fast Attach 22 | 7 13 1 1 Attach 11 | . 2 1 8 Detach 2 | 1 . . 1 Swap 19 | . 10 5 4 Drop 19 | . 9 6 4 Fire 99 | . 38 26 35 Melee . | . . . . Ram . | . . . . Kick 1 | . . . 1 Crush 2 | . . . 2 Escape Stasis . | . . . . Rewire . | . . . . Trap . | . . . . Miscellaneous . | . . . . Route ------- -11/Scrapyard -10/Materials (discovered 4 exits: *Mat x3 / [*Min]) -10/Mines -9/Materials History --------- Turn | Location | Event 64 | -11/Scrapyard | Discovered new exit (range 16) 113 | -11/Scrapyard | Entered Materials 341 | -10/Materials | Build established: Mutant 521 | -10/Materials | Discovered new exit (range 8) 1006 | -10/Materials | Discovered new exit (range 12) 1509 | -10/Materials | Discovered new exit (range 14) 1585 | -10/Materials | Discovered new exit (range 7) 1670 | -10/Materials | Entered Mines 1859 | -10/Mines | Core integrity fell below 50% 2166 | -10/Mines | Received a Rocket Launcher from a helpful Derelict 2211 | -10/Mines | Assembled infested the area 2319 | -10/Mines | Discovered new exit (range 9) 2330 | -10/Mines | Entered Materials 2330 | -9/Materials | Evolved 2 slots: Propulsion x2 2471 | -9/Materials | Destroyed 7 combat bots 2618 | -9/Materials | Build established: Scavenger-Mutant 2945 | -9/Materials | Core integrity fell below 50% 2962 | -9/Materials | Core integrity fell below 20% 2967 | -9/Materials | Destroyed by Y-45 Defender with Heavy Assault Rifle Last Messages --------------- 02920_ K-01 Serf collects debris. 02922_ Imp. Ion Engine destroyed. 02923_ K-01 Serf collects debris. 02924_ Lgt. Treads destroyed. 02925_ K-01 Serf collects debris. 02930_ G-34 Mercenary destroyed. 02930_ Hvy. Assault Rifle destroyed. 02930_ K-01 Serf collects debris. 02933_ Particle Gun destroyed. 02933_ K-01 Serf collects debris. 02934_ Acquired 57 matter. 02936_ K-01 Serf collects debris. 02937_ Overheating: System interference. 02937_ Sensor Array temporarily disabled. 02939_ EM Shotgun destroyed. 02940_ K-01 Serf collects debris. 02941_ Slammed into K-01 Serf. 02944_ Lgt. Treads severed. 02949_ Med. Storage Unit destroyed. 02954_ Acquired 54 matter. Map ----- +----------------------------------------------------+ | ??????????# # # = """ #????????????????? | | ??????????# """ # # """ #????????????????? | | ??????????# """ # # """ #????????????????? | | ??????????# """ # =# #????????????????? | | ??????????# # ! + ! """ #????????????????? | | ??????????###+###### *=#![ """ #????????????????? | | ????????????# #????# #! """ #????????????????? | | ????????????# #????# # #????????????????? | | ????????????# #??####+###########????????????????? | | ????????????# #??# #??????????????????????? | | ????????????# #??# """ #??????????????????????? | | ????????????# #??# """ #??????????????????????? | | ????????????# #??# """ #??????????????????????? | | ????????????# #??# #??????????????????????? | | ???########## #??# """ #??????????????????????? | | #??# """ ! #??????????????????????? | | ???#######+## #??# """ #??????????????????????? | | ?????# # #??# #??????????????????????? | | ?????# """ # #?###########??????????????????????? | | ?????# """ # #?? ???????????????????????????? | | ?????# """ # #?? ?#####?????????????????????? | | ?????# # #??? ??#!!!#?????????????????????? | | ?????# # #??? ??#*=!#?????????????????????? | | ?????######## #####+####%!!#?????????????????????? | | ????????????# /=![=!Y#?????????????????????? | | ????????????# ]*!=@!#?????????????????????? | | ????????????# [%l!!#?????????????????????? | | ????????????# =#####?????????????????????? | | ????????????# ######## #?????????????????????????? | | ????????????# #??????# #?????????????????????????? | | ????????????# #??????# #?????????????????????????? | | ????????????# #??????# #?????????????????????????? | | ???????????? ???????# #?????????????????????????? | | ???????????? ???????#/#?????????????????????????? | | ???????????? ???????? ?????????????????????????? | | ???????????? ???????? ?????????????????????????? | | ???????????? ???????? ?????????????????????????? | | ???????????## ???????? ?????????????????????????? | | ????????????? ???????? ?????????????????????????? | | ?????????????????????? ?????????????????????????? | | ??????????????????????#??????????????????????????? | | ?????????????????????????????????????????????????? | | ?????????????????????????????????????????????????? | | ?????????????????????????????????????????????????? | | ?????????????????????????????????????????????????? | | ?????????????????????????????????????????????????? | | ?????????????????????????????????????????????????? | | ?????????????????????????????????????????????????? | | ?????????????????????????????????????????????????? | | ?????????????????????????????????????????????????? | +----------------------------------------------------+ Best States ------------- Heat Dissipation 35 Energy Generation 14 Energy Capacity 265 Matter Stores 300 Matter Capacity 300 Sight Range 16 Robot Scan Range 14 Terrain Scan Density 10 Armor Coverage 150 Evasion (%) 55 Recoil Reduction 2 Item Schematics ----------------- Grenade Launcher | -9/Materials | Scanalyzed Robot Schematics ------------------ None Fabricated ------------ Nothing Alien Tech Used ----------------- None Achievements -------------- None Challenges ------------ None Game ------ Seed DirtyDimensionalArray Manual? 0 Play Time 00:27:46 Cumulative 57.7 hours Start 2024.08.30 @ 13:16:24 End 2024.08.30 @ 13:38:35 Sessions 1 Manual Loads 0 Difficulty Rogue Special Mode None Game No. 68 Rogue 68 Adventurer 0 Explorer 0 Win Type - Total 0 Types 0/0/0/0/0/0/0/0/0 Lore% 23 Gallery% 34 Achievement% 36 Wizard Run 0 Options --------- Layout 1 ASCII 0 Keyboard 1 Movement Arrows Keybinds 0 Fullscreen 1 Font 24/Smallcaps Map View 50x40 Zoom Use 0% Tactical HUD 1 Map Filters NONE Filters NONE Steam 1 RUN: d9eb2db4-3064-4dce-b7f4-cc3dfa6a205c